bitfinex-derivatives/quotes_ETHF0:USTF0_20240829
["timestamp","ask_amount","ask_price","bid_price","bid_amount"]
[1724906688278,10.10451434,2526.8,2526.7,0.39566]
[1724906688574,9.98080532,2526.8,2526.7,0.39566]
[1724906688770,10.10451395,2526.8,2526.7,0.39566]
[1724906688973,9.98080532,2526.8,2526.7,0.39566]
[1724906689174,10.104514,2526.8,2526.7,0.39566]
[1724906689475,9.98080532,2526.8,2526.7,0.39566]
[1724906691479,6.02320532,2526.8,2526.7,0.39566]
[1724906693773,5.20100532,2526.8,2526.7,0.39566]
[1724906695783,4.33740532,2526.8,2526.7,0.39566]
[1724906697879,4.33740532,2526.8,2526.6,1.82568]
[1724906698076,5.18700532,2526.8,2526.6,1.82568]
[1724906698777,5.18700532,2526.8,2526.7,0.39567]
[1724906700278,5.18700532,2526.8,2526.6,1.82567]
[1724906700475,9.14460532,2526.8,2526.5,0.00593954]
[1724906700679,4.35327,2526.7,2526.5,0.00593954]
[1724906700874,0.12371664,2526.6,2526.5,0.00593954]
[1724906701082,8.58526753,2526.6,2526.5,0.00593954]
[1724906701681,4.50395089,2526.6,2526.5,1.83163954]
[1724906702086,4.37984374,2526.7,2526.5,1.83163954]
[1724906702282,4.37984374,2526.7,2526.5,0.00593954]
[1724906702489,8.40948,2526.6,2526.5,0.00593954]
[1724906702680,8.53319926,2526.6,2526.5,0.00593954]
[1724906702880,8.53319926,2526.6,2526.1,1.82576]
[1724906702881,0.39571,2526.5,2526.1,1.82576]
[1724906703186,0.39571,2526.5,2526.2,0.39575]
[1724906703187,5.12509605,2526.4,2526.2,0.39575]
[1724906703385,0.8001,2526.3,2526.2,0.39575]
[1724906703789,8.95299684,2526.3,2526.2,0.39575]
[1724906704789,8.95299684,2526.3,2526.1,1.82576]
[1724906705091,4.91274215,2526.2,2526.0,0.00593954]
[1724906705294,0.8306,2526.2,2526.0,0.40170954]
[1724906705588,4.38014613,2526.1,2526.0,0.40170954]
[1724906705986,8.33854613,2526.1,2526.0,0.40170954]
[1724906708906,8.33854613,2526.1,2526.0,1.22680954]
[1724906709798,4.38014613,2526.1,2526.0,1.22680954]
[1724906710002,8.33854613,2526.1,2526.0,1.22680954]
[1724906710307,4.38014613,2526.1,2526.0,1.22680954]
[1724906711701,4.38014613,2526.1,2526.0,2.65680954]
[1724906712109,4.27187332,2526.2,2526.0,2.65680954]
[1724906712311,0.8001,2526.3,2526.0,2.65680954]
[1724906712604,4.27187332,2526.2,2526.0,2.65680954]
[1724906712800,4.27187332,2526.2,2526.1,0.39576]
[1724906713305,4.17109206,2526.3,2526.2,0.39574]
[1724906713608,0.837,2526.6,2526.4,0.39572]
[1724906713808,0.837,2526.6,2526.3,0.39572]
[1724906714011,4.34690695,2526.5,2526.4,1.82572]
[1724906714210,4.34690695,2526.5,2526.2,1.43]
[1724906714609,4.34690695,2526.5,2526.3,0.39573]
[1724906715009,4.34690695,2526.5,2526.4,0.791]
[1724906716611,4.34690695,2526.5,2526.4,1.18672]
[1724906717005,5.014,2526.7,2526.6,0.39568]
[1724906717203,5.014,2526.7,2526.6,1.82568]
[1724906717410,9.49996305,2526.7,2526.6,1.82568]
[1724906717611,8.68096305,2526.7,2526.6,1.82568]
[1724906718006,4.48596305,2526.7,2526.6,5.78328]
[1724906718408,0.00593954,2527.0,2526.9,0.39564]
[1724906718613,0.00593954,2527.0,2526.9,1.82564]
[1724906718806,4.34694834,2527.0,2526.9,1.82564]
[1724906719211,4.34694834,2527.0,2526.9,1.43]
[1724906719515,4.34694834,2527.0,2526.8,2.62345]
[1724906721001,4.34694834,2527.0,2526.9,0.39564]
[1724906721611,4.34694834,2527.0,2526.8,2.2278]
[1724906721808,4.34694834,2527.0,2526.8,2.62345]
[1724906722216,4.34694834,2527.0,2526.8,2.2278]
[1724906724211,4.34694834,2527.0,2526.8,2.62345]
[1724906725005,4.34694834,2527.0,2526.6,0.39567]
[1724906725212,3.60344,2526.9,2526.5,1.26049]
[1724906725411,1.6187,2526.8,2526.6,0.39568]
[1724906725611,7.03739396,2526.8,2526.6,0.39568]
[1724906726116,7.03739396,2526.8,2526.5,1.26049]
[1724906726319,7.43305396,2526.8,2526.4,1.82571]
[1724906726622,7.03739396,2526.8,2526.5,0.3957]
[1724906727012,10.99499396,2526.8,2526.5,0.3957]
[1724906728323,7.03739396,2526.8,2526.5,0.3957]
[1724906729422,7.03739396,2526.8,2526.6,0.39568]
[1724906729823,10.99499396,2526.8,2526.6,0.39568]
[1724906730618,0.12371768,2526.7,2526.6,0.39568]
[1724906730825,0.12371749,2526.7,2526.6,0.39568]
[1724906731020,8.1060962,2526.7,2526.5,0.39569]
[1724906731216,0.39571,2526.5,2526.2,1.26054]
[1724906731420,1.6521,2526.4,2526.2,0.8648]
[1724906731623,0.8373,2526.3,2526.2,1.26055]
[1724906732127,5.2829286,2526.3,2526.1,1.82576]
[1724906732429,5.6786586,2526.3,2526.1,2.2167]
[1724906733714,5.2829286,2526.3,2526.1,2.61246]
[1724906734818,5.2829286,2526.3,2526.2,0.39575]
[1724906740130,5.2829286,2526.3,2526.1,3.43725]
[1724906740424,5.2829286,2526.3,2526.0,0.00593954]
[1724906740625,5.2829286,2526.3,2526.1,1.43]
[1724906740825,5.2829286,2526.3,2526.2,1.82575]
[1724906742329,5.2829286,2526.3,2526.2,2.67845]
[1724906744525,4.4456286,2526.3,2526.2,2.67845]
[1724906744926,6.82348221,2526.7,2526.4,0.39572]
[1724906745227,3.91977796,2526.6,2526.4,0.39572]
[1724906745426,3.91977796,2526.6,2526.5,1.2119]
[1724906745831,3.91977796,2526.6,2526.5,2.9192]
[1724906747730,3.91977796,2526.6,2526.5,0.8162]
[1724906747932,4.80547796,2526.6,2526.4,1.43]
[1724906748243,0.8359,2526.5,2526.4,1.43]
[1724906748442,0.8359,2526.5,2526.4,1.82572]
[1724906748624,5.23669409,2526.5,2526.4,1.82572]
[1724906751036,5.23669409,2526.5,2526.4,1.43]
[1724906751336,5.23669409,2526.5,2526.3,0.39573]
[1724906753836,5.23669409,2526.5,2526.4,0.39572]
[1724906754227,5.23669409,2526.5,2526.3,0.39572]
[1724906761937,5.23669409,2526.5,2526.2,2.2435]
[1724906762137,4.40079409,2526.5,2526.4,0.39572]
[1724906762340,4.40079409,2526.5,2526.4,1.82572]
[1724906762552,4.40079409,2526.5,2526.4,5.78412]
[1724906762733,3.2078,2526.7,2526.6,0.39568]
[1724906763045,4.32586169,2526.6,2526.5,2.97179]
[1724906763442,3.2078,2526.7,2526.5,6.92939]
[1724906763642,4.32586169,2526.6,2526.5,2.97179]
[1724906764042,4.32586169,2526.6,2526.5,6.92939]
[1724906764346,7.65016782,2526.7,2526.5,6.92939]
[1724906764537,7.65016782,2526.7,2526.5,2.97179]
[1724906764741,3.2078,2526.7,2526.5,2.97179]
[1724906764941,4.12057547,2526.6,2526.5,2.97179]
[1724906765344,4.12057547,2526.6,2526.5,6.92939]
[1724906765741,4.10869639,2526.6,2526.5,13.66797469]
[1724906765942,4.10869639,2526.6,2526.5,19.66797469]
[1724906766138,4.20093954,2527.0,2526.9,0.39564]
[1724906766351,0.00593954,2527.0,2526.9,1.82564]
[1724906766642,3.84750939,2527.0,2526.8,1.82565]
[1724906766848,3.84750939,2527.0,2526.9,0.828]
[1724906769838,3.84750939,2527.0,2526.7,1.03441645]
[1724906770348,0.12370608,2526.9,2526.7,1.03441645]
[1724906770549,1.6718,2526.8,2526.7,1.03441645]
[1724906770753,6.12673871,2526.8,2526.7,1.03441645]
[1724906771946,6.25045265,2526.8,2526.7,1.03441645]
[1724906772140,6.12673871,2526.8,2526.7,1.03441645]
[1724906773243,6.12673871,2526.8,2526.7,1.43008645]
[1724906774447,6.12673871,2526.8,2526.7,1.03441645]
[1724906774645,6.12673871,2526.8,2526.6,4.24260468]
[1724906774646,6.12673871,2526.8,2526.6,2.69098]
[1724906774947,0.837,2526.7,2526.6,2.69098]
[1724906775248,5.34989239,2526.7,2526.6,2.69098]
[1724906775551,5.34989239,2526.7,2526.6,2.2953]
[1724906775851,5.34989239,2526.7,2526.6,2.69098]
[1724906777653,4.51289239,2526.7,2526.6,2.69098]
[1724906778546,4.51289239,2526.7,2526.6,0.8653]
[1724906778755,8.11636239,2526.7,2526.5,1.03441645]
[1724906779053,1.00802344,2526.6,2526.5,1.03441645]
[1724906779456,9.49961527,2526.6,2526.5,1.43011645]
[1724906779648,9.37589183,2526.6,2526.5,0.3957]
[1724906779843,9.49961206,2526.6,2526.5,0.3957]
[1724906780758,9.49961206,2526.6,2526.4,1.82571]
[1724906781050,5.41829183,2526.6,2526.4,1.82571]
[1724906781457,5.41829183,2526.6,2526.5,0.3957]
[1724906781755,4.53399183,2526.6,2526.5,1.8257]
[1724906781955,4.65771022,2526.6,2526.5,1.8257]
[1724906782155,0.12371839,2526.6,2526.5,1.8257]
[1724906782356,4.71418645,2526.6,2526.5,1.8257]
[1724906788455,4.59046806,2526.6,2526.5,1.8257]
[1724906788855,4.29390831,2526.7,2526.5,1.8257]
[1724906789052,1.6718,2526.8,2526.5,1.43]
[1724906789253,0.12371318,2526.7,2526.3,3.31661645]
[1724906789454,0.51940318,2526.6,2526.3,3.31661645]
[1724906789659,1.21739,2526.6,2526.3,3.71234645]
[1724906789854,4.58050919,2526.5,2526.3,3.71234645]
[1724906791060,4.58050919,2526.5,2526.3,2.2822]
[1724906791266,0.8975,2526.4,2526.3,2.2822]
[1724906791459,1.7756,2526.4,2526.3,2.2822]
[1724906791653,6.20568374,2526.4,2526.3,2.2822]
[1724906791955,6.20568374,2526.4,2526.3,2.67793]
[1724906793664,6.20568374,2526.4,2526.2,1.03441645]
[1724906793857,6.20568374,2526.4,2526.1,1.03441645]
[1724906793858,0.93643597,2526.3,2526.1,1.03441645]
[1724906794056,0.12373969,2526.2,2526.0,0.00593954]
[1724906794261,4.22037318,2526.2,2526.0,0.88623954]
[1724906794765,4.22037318,2526.2,2526.1,1.43]
[1724906794967,4.34411505,2526.2,2526.1,1.43]
[1724906795769,4.34411269,2526.2,2526.1,1.43]
[1724906795966,4.22037318,2526.2,2526.1,1.43]
[1724906796266,4.3441119,2526.2,2526.1,1.43]
[1724906796456,4.22037318,2526.2,2526.1,1.43]
[1724906798961,4.34411659,2526.2,2526.1,1.43]
[1724906799558,4.34411722,2526.2,2526.1,1.43]
[1724906799965,4.22037318,2526.2,2526.1,1.43]
[1724906800666,4.34411716,2526.2,2526.1,1.43]
[1724906801060,4.34411716,2526.2,2526.1,1.82576]
[1724906801272,4.22037318,2526.2,2526.1,1.43]
[1724906801968,4.22037318,2526.2,2526.1,1.82576]
[1724906802166,4.22037318,2526.2,2526.1,1.43]
[1724906802871,4.22037318,2526.2,2526.1,1.82576]
[1724906803073,4.22037318,2526.2,2526.1,1.43]
[1724906803366,4.22037318,2526.2,2526.1,1.82576]
[1724906803766,4.22037318,2526.2,2526.1,1.43]
[1724906804169,4.22037318,2526.2,2526.1,1.82576]
[1724906804961,4.22037318,2526.2,2526.1,1.43]
[1724906805768,4.22037318,2526.2,2526.1,1.82576]
[1724906806671,4.22037318,2526.2,2526.1,1.43]
[1724906808969,4.22037318,2526.2,2526.1,1.82576]
[1724906809584,3.9584,2526.1,2525.6,1.03441645]
[1724906809885,1.43,2525.7,2525.3,0.39588]
[1724906810072,0.39586,2525.5,2525.3,0.39588]
[1724906810269,0.8777,2525.4,2525.3,0.39588]
[1724906810477,5.31109617,2525.4,2525.3,0.39588]
[1724906810970,4.43339617,2525.4,2525.3,0.39588]
[1724906811170,4.43339617,2525.4,2525.3,1.82588]
[1724906811374,0.00593954,2525.6,2525.5,0.39586]
[1724906811576,0.00593954,2525.6,2525.5,1.82586]
[1724906811772,4.06041257,2525.6,2525.5,1.82586]
[1724906812977,4.06041257,2525.6,2525.5,1.43]
[1724906813176,4.06041257,2525.6,2525.4,1.43]
[1724906814072,4.06041257,2525.6,2525.3,0.39589]
[1724906815486,4.94151257,2525.6,2525.3,0.39589]
[1724906816576,4.94151257,2525.6,2525.2,1.2543]
[1724906817185,4.94151257,2525.6,2525.3,0.39589]
[1724906817485,5.33735257,2525.6,2525.2,1.25429]
[1724906817874,5.33735257,2525.6,2525.3,0.39589]
[1724906822181,4.94151257,2525.6,2525.4,0.39587]
[1724906822577,5.33735257,2525.6,2525.3,0.39588]
[1724906823180,5.33735257,2525.6,2525.4,0.39587]
[1724906824374,0.39587,2525.4,2525.2,0.8584]
[1724906824582,3.2078,2525.4,2525.2,1.2543]
[1724906824779,6.06319932,2525.3,2525.2,1.2543]
[1724906825879,5.17549932,2525.3,2525.2,1.2543]
[1724906826192,4.27139932,2525.3,2525.2,1.2543]
[1724906827188,4.15600605,2525.4,2525.2,1.2543]
[1724906827386,0.8441,2525.5,2525.2,1.2543]
[1724906827582,0.8441,2525.5,2525.3,0.9224]
[1724906827782,4.15600605,2525.4,2525.3,0.9224]
[1724906828379,4.21087674,2525.5,2525.3,1.31828]
[1724906828584,0.00593954,2525.6,2525.3,1.31828]
[1724906828787,0.00593954,2525.6,2525.4,0.8863]
[1724906829088,4.21087674,2525.5,2525.4,0.8863]
[1724906830197,4.21087674,2525.5,2525.2,0.3959]
[1724906830487,0.9156,2525.4,2525.2,0.3959]
[1724906830894,4.35722785,2525.3,2525.2,0.3959]
[1724906836096,4.35722785,2525.3,2525.2,1.8259]
[1724906839699,4.35722785,2525.3,2525.2,5.7859]
[1724906840198,4.12555792,2525.5,2525.3,0.39589]
[1724906840396,0.87693954,2525.6,2525.3,0.39589]
[1724906840794,4.48185064,2525.5,2525.3,0.39589]
[1724906842800,4.48185064,2525.5,2525.4,0.39587]
[1724906842993,4.4759111,2525.5,2525.4,6.02336]
[1724906843190,9.54e-06,2525.6,2525.5,1.38551]
[1724906843395,0.8947,2526.2,2526.1,0.39576]
[1724906843706,0.8947,2526.2,2526.1,1.82576]
[1724906843906,5.21058337,2526.2,2526.1,1.43]
[1724906844392,5.21058337,2526.2,2526.0,1.43]
[1724906844593,1.8128,2526.1,2526.0,1.43]
[1724906844994,6.27985436,2526.1,2526.0,1.43]
[1724906845597,6.27985436,2526.1,2526.0,2.3474]
[1724906847201,6.27985436,2526.1,2526.0,1.43]
[1724906847403,0.39579,2526.0,2525.5,0.39586]
[1724906847706,4.30411356,2525.9,2525.5,1.30316]
[1724906847911,0.8893,2525.8,2525.5,1.30316]
[1724906848101,0.8475,2525.7,2525.5,1.30316]
[1724906848300,5.23104941,2525.7,2525.5,1.30316]
[1724906848602,5.23104941,2525.7,2525.5,0.9073]
[1724906848800,5.23104941,2525.7,2525.2,1.8259]
[1724906848801,5.62687941,2525.7,2525.2,1.8259]
[1724906849001,0.39584,2525.6,2525.2,1.3032]
[1724906849404,4.50459446,2525.5,2525.2,1.3032]
[1724906849799,0.923,2525.4,2525.2,0.9073]
[1724906850007,0.8684,2525.3,2525.2,0.9073]
[1724906850206,5.06805003,2525.3,2525.2,0.9073]
[1724906850410,5.06805003,2525.3,2525.1,1.83184954]
[1724906853316,5.06805003,2525.3,2525.1,5.03964954]
[1724906853514,5.06805003,2525.3,2525.1,4.64373954]
[1724906853713,5.06805003,2525.3,2525.1,0.00593954]
[1724906853915,0.9035,2525.2,2525.1,0.00593954]
[1724906854306,5.43109063,2525.2,2525.1,0.00593954]
[1724906858218,5.43109063,2525.2,2525.1,0.40185954]
[1724906860419,5.43109063,2525.2,2525.1,0.00593954]
[1724906861412,5.82699063,2525.2,2525.1,0.00593954]
[1724906862620,5.43109063,2525.2,2525.1,0.00593954]
[1724906863624,5.43109063,2525.2,2525.1,0.40185954]
[1724906866220,5.82699063,2525.2,2525.1,0.00593954]
[1724906867323,9.78699063,2525.2,2525.1,0.00593954]
[1724906868627,9.39109063,2525.2,2525.1,0.40185954]
[1724906869329,5.43109063,2525.2,2525.1,0.40185954]
[1724906869530,9.39109063,2525.2,2525.1,0.40185954]
[1724906871232,5.43109063,2525.2,2525.1,0.40185954]
[1724906872427,9.39109063,2525.2,2525.1,0.00593954]
[1724906875028,4.52759063,2525.2,2525.1,5.79185954]
[1724906875227,4.52759063,2525.2,2525.1,15.82615954]
[1724906875426,4.26459281,2525.5,2525.3,0.39588]
[1724906875640,7.4028,2525.6,2525.1,0.83243954]
[1724906875840,2.87848,2525.4,2525.1,0.00593954]
[1724906876030,0.39589,2525.3,2525.1,0.00593954]
[1724906876233,4.34772805,2525.3,2525.1,0.00593954]
[1724906877438,0.3959,2525.2,2525.1,0.00593954]
[1724906877739,8.6544869,2525.2,2525.1,0.00593954]
[1724906878837,4.2985869,2525.2,2525.1,0.00593954]
[1724906879238,4.2985869,2525.2,2525.1,0.88573954]
[1724906880645,4.6944869,2525.2,2525.1,0.88573954]
[1724906881941,4.2985869,2525.2,2525.1,1.28165954]
[1724906883650,4.6944869,2525.2,2525.1,0.00593954]
[1724906884158,8.6544869,2525.2,2525.1,0.00593954]
[1724906884843,4.6944869,2525.2,2525.1,0.00593954]
[1724906885039,4.2985869,2525.2,2525.1,0.40185954]
[1724906887153,4.2985869,2525.2,2525.1,0.00593954]
[1724906887856,4.2985869,2525.2,2525.1,0.40185954]
[1724906890050,4.58499067,2525.3,2525.1,0.40185954]
[1724906891762,4.98088067,2525.3,2525.1,0.00593954]
[1724906891956,0.12379227,2525.2,2525.1,0.00593954]
[1724906892363,4.44142765,2525.2,2525.1,0.00593954]
[1724906893962,4.44142765,2525.2,2525.1,0.40185954]
[1724906894159,4.31763538,2525.2,2525.1,0.40185954]
[1724906894563,0.12378712,2525.2,2525.1,0.40185954]
[1724906895064,4.48114613,2525.2,2525.1,0.40185954]
[1724906897564,4.48114613,2525.2,2525.1,0.00593954]
[1724906897770,4.35735901,2525.2,2525.1,0.00593954]
[1724906898065,4.48115265,2525.2,2525.1,0.00593954]
[1724906898767,7.68895265,2525.2,2525.1,0.40185954]
[1724906899461,7.68895265,2525.2,2525.1,0.00593954]
[1724906900858,4.48115265,2525.2,2525.1,0.00593954]
[1724906901055,7.68895265,2525.2,2525.1,0.00593954]
[1724906903164,4.48115265,2525.2,2525.1,4.36185954]
[1724906903365,4.48115265,2525.2,2525.1,14.23961617]
[1724906903561,4.48115265,2525.2,2525.1,13.20725081]
[1724906903768,4.48115265,2525.2,2525.1,7.20725081]
[1724906904362,4.35735901,2525.2,2525.1,8.24583852]
[1724906904573,4.48113608,2525.2,2525.1,8.24583852]
[1724906904870,0.8337,2525.4,2525.1,8.24583852]
[1724906904871,4.36684312,2525.3,2525.2,0.3959]
[1724906905167,3.2078,2525.5,2525.4,0.39587]
[1724906905472,7.355138,2525.5,2525.4,0.39587]
[1724906907970,7.35513697,2525.5,2525.4,0.39587]
[1724906908270,7.23136887,2525.5,2525.4,0.39587]
[1724906911182,7.35513701,2525.5,2525.4,0.39587]
[1724906911981,4.14733701,2525.5,2525.4,5.78587]
[1724906913372,4.14733191,2525.5,2525.4,4.35587]
[1724906914173,4.02356887,2525.5,2525.4,4.35587]
[1724906914379,4.14733701,2525.5,2525.4,4.35587]
[1724906914681,0.12376814,2525.5,2525.4,4.35587]
[1724906914880,4.48996522,2525.5,2525.4,4.35587]
[1724906915578,4.36619708,2525.5,2525.4,5.20147]
[1724906915982,4.31962488,2525.6,2525.5,0.39584]
[1724906916176,4.44338944,2525.6,2525.5,0.39584]
[1724906916375,4.44338944,2525.6,2525.5,4.35504]
[1724906918487,4.44339027,2525.6,2525.5,4.35504]
[1724906919080,4.44339027,2525.6,2525.5,5.78504]
[1724906919280,4.31962488,2525.6,2525.5,14.63356161]
[1724906919686,8.2184,2525.9,2525.8,0.39581]
[1724906919885,4.0234,2525.9,2525.8,0.39581]
[1724906920085,8.35034346,2525.9,2525.8,0.39581]
[1724906923290,5.14254346,2525.9,2525.8,0.39581]
[1724906933596,4.32694346,2525.9,2525.8,5.78501]
[1724906933900,4.195,2526.3,2526.2,0.39575]
[1724906934106,0.777,2526.6,2526.3,0.39573]
[1724906934405,0.777,2526.6,2526.3,1.96403]
[1724906934602,4.29141753,2526.4,2526.3,5.92243]
[1724906937703,4.29141753,2526.4,2526.3,11.92243]
[1724906938905,4.29141753,2526.4,2526.3,5.12073]
[1724906939109,4.29141753,2526.4,2526.3,0.39573]
[1724906941309,4.29141753,2526.4,2526.2,0.5922187]
[1724906943804,4.29141753,2526.4,2526.2,0.1964787]
[1724906944008,4.29141753,2526.4,2526.2,0.5922187]
[1724906944215,4.29141753,2526.4,2526.2,0.1964787]
[1724906945611,4.29141753,2526.4,2526.2,0.5922287]
[1724906945816,4.29141753,2526.4,2526.2,0.1964787]
[1724906946005,4.29141753,2526.4,2526.2,0.5922187]
[1724906947311,1.43,2526.3,2525.9,0.39578]
[1724906947518,1.43,2526.3,2525.8,0.3958]
[1724906947519,0.39577,2526.1,2525.8,0.3958]
[1724906947708,4.68893091,2526.2,2525.9,0.39579]
[1724906948014,4.29318091,2526.0,2525.9,0.39578]
[1724906948313,3.60946954,2526.4,2525.9,1.43]
[1724906948314,3.21373954,2526.4,2525.9,1.43]
[1724906948519,3.21373954,2526.4,2526.1,0.39575]
[1724906948703,4.29318091,2526.2,2526.1,0.39575]
[1724906948908,4.42543079,2526.3,2526.1,0.39575]
[1724906949312,3.60945954,2526.4,2526.0,0.39577]
[1724906949609,4.12193982,2526.3,2526.0,0.39577]
[1724906950617,4.12193982,2526.3,2526.1,0.39576]
[1724906951613,4.12193982,2526.3,2526.0,0.39577]
[1724906952106,4.12193982,2526.3,2525.8,1.8258]
[1724906952311,0.39577,2526.1,2525.8,1.8258]
[1724906952505,0.39577,2526.1,2525.7,3.2078]
[1724906952712,4.87106762,2526.0,2525.7,3.60362]
[1724906953111,4.47527762,2526.2,2525.7,3.2078]
[1724906953309,4.64373954,2526.4,2525.8,1.43]
[1724906953512,0.39578,2526.1,2525.8,1.8258]
[1724906953710,0.39578,2526.0,2525.8,1.8258]
[1724906953913,4.72022446,2526.0,2525.8,1.43]
[1724906954115,0.39577,2526.1,2525.8,1.82581]
[1724906954415,4.58121227,2526.0,2525.9,0.39579]
[1724906954813,4.58121227,2526.1,2525.9,0.39579]
[1724906955010,0.39576,2526.2,2525.9,0.39579]
[1724906955408,4.58121227,2526.1,2525.9,0.39579]
[1724906955613,6.13921227,2526.1,2525.9,0.39579]
[1724906957212,0.7655,2526.0,2525.9,0.39579]
[1724906957719,4.88888844,2526.0,2525.9,0.39579]
[1724906958316,4.12338844,2526.0,2525.9,1.82579]
[1724906958620,4.12338844,2526.0,2525.9,5.78499]
[1724906958921,4.13222154,2526.2,2525.9,5.3892]
[1724906959119,4.13222154,2526.2,2526.1,0.39576]
[1724906959320,2.3346,2526.3,2526.1,0.39576]
[1724906959511,4.30447902,2526.2,2526.1,0.39576]
[1724906960611,4.30447902,2526.2,2526.1,1.82576]
[1724906960812,4.30447902,2526.2,2526.1,5.78416]
[1724906961215,3.21373954,2526.4,2526.3,0.39573]
[1724906961513,7.62449463,2526.4,2526.3,0.39573]
[1724906962320,4.41669463,2526.4,2526.3,0.39573]
[1724906963213,4.41669463,2526.4,2526.3,1.82573]
[1724906963419,4.41669463,2526.4,2526.3,5.78413]
[1724906963717,4.41669463,2526.4,2526.3,12.77347]
[1724906964113,4.41669463,2526.4,2526.3,8.31637]
[1724906964316,4.41669463,2526.4,2526.3,14.31637]
[1724906964512,4.41669463,2526.4,2526.3,8.31637]
[1724906965021,4.41669463,2526.4,2526.3,14.31637]
[1724906965422,4.41669463,2526.4,2526.3,8.31637]
[1724906965623,4.41669463,2526.4,2526.3,9.14287]
[1724906965821,4.41669463,2526.4,2526.3,1.22223]
[1724906966018,4.41669463,2526.4,2526.3,6.61063]
[1724906966324,4.41669463,2526.4,2526.3,2.65223]
[1724906967317,4.41669463,2526.4,2526.3,1.43]
[1724906967521,4.41669463,2526.4,2526.2,1.43]
[1724906967719,4.41669463,2526.4,2526.0,1.22227]
[1724906967720,2.4182,2526.3,2526.0,1.22227]
[1724906968027,2.4182,2526.3,2526.0,2.2565]
[1724906968028,4.42212015,2526.2,2526.0,2.2565]
[1724906969525,4.42212015,2526.2,2526.0,1.43]
[1724906969731,4.81787015,2526.2,2526.0,1.43]
[1724906970126,4.81787015,2526.2,2525.9,3.60359]
[1724906970721,4.81787015,2526.2,2525.9,3.2078]
[1724906970922,0.39577,2526.1,2525.9,3.2078]
[1724906971122,0.39578,2526.0,2525.6,4.24213179]
[1724906971319,0.7713,2525.9,2525.7,0.39582]
[1724906971521,0.8156,2525.8,2525.7,0.39582]
[1724906971827,4.93600549,2525.8,2525.7,0.39582]
[1724906975133,4.93600549,2525.8,2525.6,4.0283]
[1724906975337,4.93600549,2525.8,2525.6,7.4483]
[1724906976025,4.93600549,2525.8,2525.7,0.39583]
[1724906976225,4.93600549,2525.8,2525.6,7.84414]
[1724906976728,5.75440549,2525.8,2525.6,7.4483]
[1724906977034,5.75440549,2525.8,2525.6,7.84413]
[1724906983343,5.75440549,2525.8,2525.7,0.39583]
[1724906983543,4.12040549,2525.8,2525.7,0.39583]
[1724906983737,4.12040549,2525.8,2525.7,4.35503]
[1724906984041,2.00177,2526.1,2525.8,0.39581]
[1724906984042,4.45478188,2526.0,2525.8,0.39581]
[1724906984248,4.45478188,2526.0,2525.7,0.39582]
[1724906984547,0.764,2525.9,2525.7,0.39582]
[1724906985049,4.46288299,2525.8,2525.7,0.39582]
[1724906992251,4.46288299,2525.8,2525.7,1.82582]
[1724906992446,4.46288299,2525.8,2525.7,0.39582]
[1724906992652,4.46288299,2525.8,2525.7,1.82582]
[1724906997552,4.46288299,2525.8,2525.7,1.43]
[1724906998453,4.46288299,2525.8,2525.7,1.82583]
[1724907002258,4.46288299,2525.8,2525.7,0.39583]
[1724907012372,4.58663488,2525.8,2525.7,0.39583]
[1724907012562,4.46288299,2525.8,2525.7,1.43016179]
[1724907013460,4.46288299,2525.8,2525.7,3.41017898]
[1724907013461,4.58663398,2525.8,2525.7,3.41017898]
[1724907013666,4.58663384,2525.8,2525.7,3.41017898]
[1724907013871,4.58663384,2525.8,2525.7,1.82583]
[1724907014177,4.58663384,2525.8,2525.7,4.84229663]
[1724907014473,4.46288299,2525.8,2525.7,5.35731207]
[1724907014658,4.5866344,2525.8,2525.7,5.35731207]
[1724907018385,3.86898006,2525.8,2525.7,24.50769392]
[1724907018773,3.86898006,2525.8,2525.7,20.93229445]
[1724907019075,3.86898006,2525.8,2525.7,23.52250556]
[1724907019274,3.86898006,2525.8,2525.7,17.52250556]
[1724907019970,3.86898006,2525.8,2525.7,14.93194161]
[1724907020173,3.86898006,2525.8,2525.7,17.00450644]
[1724907020379,3.86898006,2525.8,2525.7,17.00418]
[1724907020969,3.86898006,2525.8,2525.7,17.22616884]
[1724907021164,3.86898006,2525.8,2525.7,17.22622407]
[1724907022071,3.86898006,2525.8,2525.7,15.15393045]
[1724907022467,3.86898006,2525.8,2525.7,15.15406054]
[1724907022667,3.86898006,2525.8,2525.7,9.21481884]
[1724907024983,3.86898006,2525.8,2525.7,6.00701884]
[1724907025283,3.86898006,2525.8,2525.7,7.56283]
[1724907025573,3.86898006,2525.8,2525.7,5.03363]
[1724907025780,3.86898006,2525.8,2525.7,1.82583]
[1724907026789,3.86898006,2525.8,2525.7,5.03363]
[1724907030082,3.86898006,2525.8,2525.7,13.04411286]
[1724907030579,3.86898006,2525.8,2525.7,9.08459509]
[1724907033078,3.86898006,2525.8,2525.7,13.04379509]
[1724907033382,3.86898006,2525.8,2525.7,10.97258888]
[1724907034587,3.86898006,2525.8,2525.7,11.96215888]
[1724907034889,3.86898006,2525.8,2525.7,17.96215888]
[1724907035082,3.86898006,2525.8,2525.7,24.51038456]
[1724907035283,3.86898006,2525.8,2525.7,24.51023599]
[1724907035694,3.86898006,2525.8,2525.7,18.51023599]
[1724907036081,3.86898006,2525.8,2525.7,25.49980599]
[1724907036382,3.16688404,2525.8,2525.7,24.51023599]
[1724907036785,3.16688404,2525.8,2525.7,15.92122823]
[1724907036990,3.16688404,2525.8,2525.7,13.04291033]
[1724907037282,3.16688404,2525.8,2525.7,9.08371033]
[1724907037680,3.16688404,2525.8,2525.7,3.80543941]
[1724907038181,3.16688404,2525.8,2525.7,5.35849453]
[1724907038889,3.16688404,2525.8,2525.7,3.80543941]
[1724907039083,3.16688404,2525.8,2525.7,5.3584707]
[1724907039283,3.98878404,2525.8,2525.7,5.3584707]
[1724907040785,3.98878404,2525.8,2525.7,4.9626407]
[1724907043277,3.98878404,2525.8,2525.7,5.3584707]
[1724907043486,3.98878404,2525.8,2525.7,3.80543941]
[1724907043887,3.98878404,2525.8,2525.7,6.17284782]
[1724907044085,3.98878404,2525.8,2525.7,6.17288567]
[1724907044280,3.98878404,2525.8,2525.7,6.17289408]
[1724907044592,3.98878404,2525.8,2525.7,5.35919408]
[1724907045586,3.98878404,2525.8,2525.7,5.35946459]
[1724907046888,3.98878404,2525.8,2525.7,3.80570992]
[1724907048594,3.98878404,2525.8,2525.7,2.37570992]